bitfinex/quotes_BTCUSD_20240703
["timestamp","ask_amount","ask_price","bid_price","bid_amount"]
[1719972703639,0.129861,61604.0,61602.0,0.21719905]
[1719972703838,0.129861,61604.0,61603.0,0.023]
[1719972704038,0.259708,61608.0,61603.0,0.1832988]
[1719972704252,0.259696,61611.0,61604.0,0.1602988]
[1719972704461,0.129857,61606.0,61604.0,0.1601988]
[1719972704665,0.129857,61606.0,61605.0,0.023]
[1719972704878,0.129857,61606.0,61605.0,0.1832988]
[1719972705080,0.649285,61606.0,61605.0,0.1831988]
[1719972705338,0.649285,61606.0,61605.0,0.1830988]
[1719972705575,0.649285,61606.0,61605.0,0.1829988]
[1719972705701,0.649285,61606.0,61605.0,0.1828988]
[1719972706148,0.649285,61606.0,61605.0,0.1898988]
[1719972706619,0.649285,61606.0,61605.0,0.1897988]
[1719972707036,0.649285,61606.0,61605.0,0.1937988]
[1719972707621,1.3025831,61606.0,61605.0,0.1937988]
[1719972707839,1.215999,61606.0,61605.0,0.0109]
[1719972708106,1.215999,61606.0,61605.0,0.0108]
[1719972708519,1.215999,61606.0,61605.0,0.004]
[1719972708711,0.649317,61603.0,61602.0,0.01610025]
[1719972708917,0.649317,61603.0,61602.0,0.17639905]
[1719972709927,0.649317,61603.0,61602.0,0.17629905]
[1719972710264,0.649317,61603.0,61602.0,0.01600025]
[1719972710265,1.82709662,61603.0,61602.0,0.01600025]
[1719972710462,0.649475,61588.0,61577.0,0.2643]
[1719972710694,0.649475,61588.0,61587.0,0.01640025]
[1719972710918,1.213265,61588.0,61587.0,0.01640025]
[1719972711121,1.471065,61588.0,61587.0,0.01640025]
[1719972712282,1.99121806,61588.0,61587.0,0.0004]
[1719972712891,1.99521806,61588.0,61587.0,0.0024]
[1719972713103,2.05521806,61588.0,61587.0,0.0014]
[1719972713343,2.07842731,61588.0,61587.0,0.0004]
[1719972713667,2.10863748,61588.0,61587.0,0.0024]
[1719972713889,1.94827442,61588.0,61587.0,0.0024]
[1719972714442,1.62848442,61588.0,61587.0,0.0024]
[1719972714679,1.60227471,61588.0,61587.0,0.1626988]
[1719972714884,1.34248471,61588.0,61587.0,0.17869905]
[1719972715676,1.34248471,61588.0,61587.0,0.1626988]
[1719972716254,1.34048471,61588.0,61587.0,0.1616988]
[1719972716458,1.33748471,61588.0,61587.0,0.1606988]
[1719972716662,1.34248471,61588.0,61587.0,0.1616988]
[1719972718525,1.60227471,61588.0,61587.0,0.1616988]
[1719972718725,0.78068471,61588.0,61587.0,0.1616988]
[1719972719105,0.77668471,61588.0,61587.0,0.1616988]
[1719972719288,0.78068471,61588.0,61587.0,0.1616988]
[1719972719497,0.77968471,61588.0,61587.0,0.1606988]
[1719972719741,0.77568471,61588.0,61587.0,0.1616988]
[1719972719876,0.77668471,61588.0,61587.0,0.1616988]
[1719972720082,1.03647471,61588.0,61587.0,0.0014]
[1719972720299,1.03747471,61588.0,61587.0,0.0024]
[1719972721166,1.04147471,61588.0,61587.0,0.0024]
[1719972721862,1.03547471,61588.0,61587.0,0.0004]
[1719972722038,1.03547471,61588.0,61587.0,0.1606988]
[1719972722039,0.41889471,61588.0,61587.0,0.1606988]
[1719972722247,0.41889471,61588.0,61587.0,0.0004]
[1719972722248,0.93847471,61588.0,61587.0,0.0004]
[1719972723061,0.93647471,61588.0,61587.0,0.0004]
[1719972723439,0.93547471,61588.0,61587.0,0.0004]
[1719972723644,0.96196967,61588.0,61587.0,0.0004]
[1719972724053,1.33453824,61588.0,61587.0,0.0004]
[1719972724250,1.33553824,61588.0,61587.0,0.0004]
[1719972725034,1.31132853,61588.0,61587.0,0.0004]
[1719972725250,1.28483357,61588.0,61587.0,0.0004]
[1719972725582,1.40837677,61588.0,61587.0,0.0004]
[1719972725764,1.41037677,61588.0,61587.0,0.0004]
[1719972725962,1.41137677,61588.0,61587.0,0.0004]
[1719972726163,1.43581284,61588.0,61587.0,0.0004]
[1719972726664,1.69460284,61588.0,61587.0,0.0004]
[1719972726864,1.43881284,61588.0,61587.0,0.0014]
[1719972727154,1.43981284,61588.0,61587.0,0.0024]
[1719972727422,1.38703427,61588.0,61587.0,0.0024]
[1719972728339,1.38650091,61588.0,61587.0,0.0024]
[1719972728672,1.36049107,61588.0,61587.0,0.0024]
[1719972728869,1.38642305,61588.0,61587.0,0.0024]
[1719972729816,1.36098698,61588.0,61587.0,0.0024]
[1719972730017,1.38642403,61588.0,61587.0,0.0024]
[1719972730173,1.54678709,61588.0,61587.0,0.0024]
[1719972730519,1.84678709,61588.0,61587.0,0.0024]
[1719972730967,1.68063036,61588.0,61587.0,0.0024]
[1719972731183,1.54678709,61588.0,61587.0,0.0024]
[1719972731398,1.43405174,61588.0,61587.0,0.0024]
[1719972732162,1.38648816,61588.0,61587.0,0.0024]
[1719972732371,1.36105111,61588.0,61587.0,0.0024]
[1719972733000,1.38648882,61588.0,61587.0,0.0024]
[1719972733202,1.52039866,61588.0,61587.0,0.0024]
[1719972733605,1.93487233,61588.0,61587.0,0.0024]
[1719972733803,2.00623467,61588.0,61587.0,0.0024]
[1719972734419,2.00703929,61588.0,61587.0,0.0024]
[1719972734599,1.93567863,61588.0,61587.0,0.0024]
[1719972734806,2.95576743,61588.0,61587.0,0.0024]
[1719972735138,2.95576743,61588.0,61587.0,0.00232737]
[1719972735905,0.129939,61567.0,61566.0,0.307]
[1719972736152,0.38983,61565.0,61564.0,0.01600025]
[1719972736384,0.99604335,61565.0,61564.0,0.25680025]
[1719972736585,1.29593035,61565.0,61564.0,0.25680025]
[1719972736788,1.44805338,61565.0,61564.0,0.25680025]
[1719972736989,1.29593035,61565.0,61564.0,0.25680025]
[1719972737408,1.269491,61565.0,61564.0,0.25680025]
[1719972737537,1.29610156,61565.0,61564.0,0.25680025]
[1719972737744,1.35610156,61565.0,61564.0,0.25680025]
[1719972737931,1.29610156,61565.0,61564.0,0.01600025]
[1719972738794,1.269491,61565.0,61564.0,0.01600025]
[1719972738996,1.4790701,61565.0,61564.0,0.01600025]
[1719972739153,1.6443701,61565.0,61564.0,0.02100025]
[1719972739549,1.270391,61565.0,61564.0,0.02800025]
[1719972739789,1.435691,61565.0,61564.0,0.02800025]
[1719972740176,1.46206375,61565.0,61564.0,0.02800025]
[1719972740399,1.52206375,61565.0,61564.0,0.02800025]
[1719972740948,1.495691,61565.0,61564.0,0.02800025]
[1719972741459,1.5951823,61565.0,61564.0,0.02800025]
[1719972741686,1.5951823,61565.0,61564.0,0.012]
[1719972742085,1.5351823,61565.0,61564.0,0.012]
[1719972742263,1.5951823,61565.0,61564.0,0.012]
[1719972742606,1.52198772,61565.0,61564.0,0.012]
[1719972743151,1.20210072,61565.0,61564.0,0.012]
[1719972743351,1.20210072,61565.0,61564.0,0.2632]
[1719972744353,1.20147802,61565.0,61564.0,0.2632]
[1719972744773,1.20140883,61565.0,61564.0,0.2632]
[1719972745568,1.32764971,61565.0,61564.0,0.012]
[1719972745679,1.32764971,61565.0,61564.0,0.012924]
[1719972746131,1.20140883,61565.0,61564.0,0.012924]
[1719972747149,1.84000883,61565.0,61564.0,0.012924]
[1719972747554,2.074191,61565.0,61564.0,0.012924]
[1719972747807,2.12493554,61565.0,61564.0,0.012924]
[1719972748549,2.12503554,61565.0,61564.0,0.012924]
[1719972748963,2.12497064,61565.0,61564.0,0.012924]
[1719972749236,2.2854337,61565.0,61564.0,0.012924]
[1719972749352,2.5854337,61565.0,61564.0,0.013024]
[1719972749552,2.34764594,61565.0,61564.0,0.013024]
[1719972749974,2.34774594,61565.0,61564.0,0.008024]
[1719972750236,2.64784594,61565.0,61564.0,0.008024]
[1719972750371,2.48254594,61565.0,61564.0,0.008024]
[1719972750575,2.48254594,61565.0,61564.0,0.008124]
[1719972750576,2.48554594,61565.0,61564.0,0.008124]
[1719972750817,2.39703518,61565.0,61564.0,0.001124]
[1719972751055,2.48458615,61565.0,61564.0,0.001124]
[1719972751279,2.74447315,61565.0,61564.0,0.001124]
[1719972751926,2.58281206,61565.0,61564.0,0.001124]
[1719972752141,0.129971,61552.0,61550.0,0.248324]
[1719972752408,0.129971,61552.0,61551.0,0.09615607]
[1719972752409,0.54536208,61552.0,61551.0,0.09615607]
[1719972752618,0.93527508,61552.0,61551.0,0.65905607]
[1719972752945,0.649855,61552.0,61551.0,0.65905607]
[1719972753149,0.129971,61552.0,61551.0,0.81935487]
[1719972753354,0.129969,61553.0,61552.0,0.5629]
[1719972753546,0.129969,61553.0,61552.0,0.7461988]
[1719972754203,0.389907,61553.0,61552.0,0.7461988]
[1719972754800,0.389807,61553.0,61552.0,0.7461988]
[1719972755001,0.390807,61553.0,61552.0,0.7601988]
[1719972755432,0.650745,61553.0,61552.0,0.7601988]
[1719972755596,0.651745,61553.0,61552.0,0.5899]
[1719972756241,1.03580939,61553.0,61552.0,0.2819]
[1719972756477,0.77587139,61553.0,61552.0,0.2819]
[1719972756695,0.751745,61553.0,61552.0,0.6051]
[1719972757130,0.750745,61553.0,61552.0,0.5911]
[1719972757452,0.751745,61553.0,61552.0,0.5991]
[1719972757647,0.651745,61553.0,61552.0,0.5991]
[1719972758882,0.650745,61553.0,61552.0,0.5861]
[1719972759074,0.650645,61553.0,61552.0,0.5861]
[1719972759254,0.650645,61553.0,61552.0,0.5911]
[1719972760526,1.0016399,61553.0,61552.0,0.5911]
[1719972760679,0.93473737,61553.0,61552.0,0.013]
[1719972762137,0.93483737,61553.0,61552.0,0.013]
[1719972762640,0.93493737,61553.0,61552.0,0.013]
[1719972762816,0.93493737,61553.0,61552.0,0.0131]
[1719972763029,0.93493737,61553.0,61552.0,0.013]
[1719972763191,0.93406416,61553.0,61552.0,0.013]
[1719972763644,1.07551058,61553.0,61552.0,0.013]
[1719972764374,1.07561058,61553.0,61552.0,0.013]
[1719972764789,1.25410216,61553.0,61552.0,0.013]
[1719972765206,1.27955207,61553.0,61552.0,0.013]
[1719972765409,1.27965207,61553.0,61552.0,0.013]
[1719972765537,1.83915207,61553.0,61552.0,0.013]
[1719972765740,2.15933284,61553.0,61552.0,0.013]
[1719972766008,2.1597579,61553.0,61552.0,0.013]
[1719972766179,2.1598579,61553.0,61552.0,0.013]
[1719972766357,2.16021416,61553.0,61552.0,0.013]
[1719972766561,2.16021416,61553.0,61550.0,0.000924]
[1719972766562,1.229761,61551.0,61550.0,0.000924]
[1719972766766,1.59945416,61551.0,61550.0,0.01692425]
[1719972767929,1.60645416,61551.0,61550.0,0.01792425]
[1719972768134,1.87285416,61551.0,61550.0,0.01792425]
[1719972769180,1.87285416,61551.0,61550.0,0.01692425]
[1719972769365,1.8661648,61551.0,61550.0,0.01692425]
[1719972769572,1.8841648,61551.0,61550.0,0.01892425]
[1719972769772,1.88414985,61551.0,61550.0,0.01892425]
[1719972769994,1.88414985,61551.0,61550.0,0.01792425]
[1719972770223,1.89514985,61551.0,61550.0,0.01892425]
[1719972770622,2.21674985,61551.0,61550.0,0.01892425]
[1719972770821,2.98454507,61551.0,61550.0,0.01892425]
[1719972771059,1.555928,61550.0,61549.0,0.00890325]
[1719972771264,2.18586785,61550.0,61549.0,0.00890325]
[1719972772421,2.23272694,61550.0,61549.0,0.00990325]
[1719972772607,2.13110113,61550.0,61549.0,0.00990325]
[1719972772809,2.19116735,61550.0,61549.0,0.00990325]
[1719972773017,2.20116735,61550.0,61549.0,0.01090325]
[1719972775795,2.04067481,61550.0,61549.0,0.01090325]
[1719972777034,1.980671,61550.0,61549.0,0.01090325]
[1719972777236,1.13462,61550.0,61549.0,0.01090325]
[1719972777386,1.07462,61550.0,61549.0,0.26470325]
[1719972777606,1.04917009,61550.0,61549.0,0.26470325]
[1719972777799,0.16931709,61550.0,61549.0,0.26470325]
[1719972777994,0.16931709,61550.0,61549.0,0.58110325]
[1719972778203,0.42926809,61550.0,61549.0,0.58110325]
[1719972778639,0.43010809,61550.0,61549.0,0.58110325]
[1719972778794,0.42464605,61550.0,61549.0,0.58010325]
[1719972779208,0.42464605,61550.0,61549.0,0.58110325]
[1719972779417,0.16469505,61550.0,61549.0,0.58110325]
[1719972779612,0.15469505,61550.0,61549.0,0.58010325]
[1719972780017,0.15669505,61550.0,61549.0,0.58010325]
[1719972780446,0.00284,61550.0,61549.0,0.93027905]
[1719972780647,0.00284,61550.0,61549.0,0.76340205]
[1719972781613,0.389926,61550.0,61549.0,0.76333609]
[1719972781799,0.389926,61550.0,61549.0,0.74033609]
[1719972782154,0.389926,61550.0,61549.0,0.73933609]
[1719972782367,0.390926,61550.0,61549.0,0.74933609]
[1719972782565,0.130975,61550.0,61549.0,0.74933609]
[1719972783103,0.130975,61550.0,61549.0,0.74633609]
[1719972783443,0.15518234,61550.0,61549.0,0.75033609]
[1719972783767,0.130975,61550.0,61549.0,0.75033609]
[1719972783994,0.130975,61550.0,61549.0,0.75933609]
[1719972783995,0.002,61550.0,61549.0,0.75933609]
[1719972784474,0.02631972,61550.0,61549.0,0.75933609]
[1719972784650,0.15629472,61550.0,61549.0,0.75933609]
[1719972785635,0.41624572,61550.0,61549.0,0.75933609]
[1719972785833,0.93614772,61550.0,61549.0,0.02883729]
[1719972786084,1.10144772,61550.0,61549.0,0.02883729]
[1719972787109,0.84149672,61550.0,61549.0,0.02883729]
[1719972787310,0.817177,61550.0,61549.0,0.02883729]
[1719972787514,0.84149807,61550.0,61549.0,0.02883729]
[1719972787697,0.67619807,61550.0,61549.0,0.02883729]
[1719972790472,0.67623391,61550.0,61549.0,0.02883729]
[1719972790682,0.93618491,61550.0,61549.0,0.02883729]
[1719972790859,1.7799465,61550.0,61549.0,0.02883729]
[1719972791059,2.04860556,61550.0,61549.0,0.02883729]
[1719972791238,2.12936962,61550.0,61549.0,0.02883729]
[1719972791658,2.2485485,61550.0,61549.0,0.02883729]
[1719972791858,2.12936962,61550.0,61549.0,0.02883729]
[1719972792060,2.12836962,61550.0,61549.0,0.01783729]
[1719972792282,1.86841862,61550.0,61549.0,0.01783729]
[1719972792497,1.34611524,61550.0,61549.0,0.02383729]
[1719972792832,1.34611524,61550.0,61549.0,0.00883729]
[1719972792833,1.2719977,61550.0,61549.0,0.00883729]
[1719972792946,1.03418491,61550.0,61549.0,0.00883729]
[1719972793155,1.03418491,61550.0,61549.0,0.01583729]
[1719972793361,1.009828,61550.0,61549.0,0.01583729]
[1719972793563,1.03448322,61550.0,61549.0,0.01583729]
[1719972793960,1.03448326,61550.0,61549.0,0.01583729]
[1719972794378,1.03448326,61550.0,61549.0,0.17613609]
[1719972794379,0.07233908,61550.0,61549.0,0.17613609]
[1719972794581,0.02465526,61550.0,61549.0,0.73633609]
[1719972794786,0.129975,61550.0,61549.0,0.73633609]
[1719972795041,0.15463026,61550.0,61549.0,0.73633609]
[1719972795792,0.41458126,61550.0,61549.0,0.73633609]
[1719972795944,0.67453226,61550.0,61549.0,0.57603729]
[1719972796548,0.41479445,61550.0,61549.0,0.57603729]
[1719972797266,0.15484345,61550.0,61549.0,0.57603729]
[1719972798264,0.15484345,61550.0,61549.0,0.63093729]
[1719972798643,0.15484345,61550.0,61549.0,0.63693729]
[1719972798644,0.15584345,61550.0,61549.0,0.63693729]
[1719972799039,0.02586845,61550.0,61549.0,0.63493729]
[1719972799257,0.02586845,61550.0,61549.0,0.57503729]
[1719972799630,0.129975,61550.0,61549.0,0.57203729]
[1719972799754,0.15219856,61550.0,61549.0,0.56903729]
[1719972800190,0.15219856,61550.0,61549.0,0.57403729]
[1719972800388,0.15319856,61550.0,61549.0,0.57603729]
[1719972800791,0.41314956,61550.0,61549.0,0.58203729]
[1719972801654,0.15219856,61550.0,61549.0,0.57503729]
[1719972801849,0.15319856,61550.0,61549.0,0.58303729]
[1719972802054,0.15319856,61550.0,61549.0,0.57703729]
[1719972802250,0.15219856,61550.0,61549.0,0.56903729]
[1719972802493,0.15319856,61550.0,61549.0,0.57503729]
[1719972802694,0.130975,61550.0,61549.0,0.57503729]
[1719972802909,0.15351441,61550.0,61549.0,0.57503729]
[1719972803128,0.15351428,61550.0,61549.0,0.57503729]
[1719972803341,0.15451428,61550.0,61549.0,0.58303729]
[1719972804796,0.02453928,61550.0,61549.0,0.80323609]
[1719972805909,0.002,61550.0,61549.0,0.80323609]
[1719972806108,0.02530698,61550.0,61549.0,0.80323609]
[1719972806426,0.002,61550.0,61549.0,0.80323609]
[1719972806626,0.002,61550.0,61549.0,0.82623609]
[1719972806627,0.02530824,61550.0,61549.0,0.82623609]
[1719972806882,0.02530824,61550.0,61549.0,0.95621309]
[1719972808066,0.02530824,61550.0,61549.0,0.82623609]
[1719972809046,0.02577116,61550.0,61549.0,0.82623609]
[1719972809916,0.02577116,61550.0,61549.0,0.76633609]
[1719972810337,0.02577116,61550.0,61549.0,0.82623609]
[1719972812189,0.02555977,61550.0,61549.0,0.82623609]
[1719972814258,0.02555977,61550.0,61549.0,0.95621309]
[1719972814472,0.002,61550.0,61549.0,1.21616809]
[1719972814675,0.002,61550.0,61549.0,1.47612309]
[1719972816141,0.001,61550.0,61549.0,1.46812309]
[1719972816360,0.0003,61553.0,61552.0,1.015613]
[1719972816562,0.0003,61553.0,61552.0,1.1989118]
[1719972818299,0.0003,61553.0,61552.0,1.2129118]
[1719972819175,0.0003,61553.0,61552.0,1.2259118]
[1719972825160,0.0003,61553.0,61552.0,0.9659698]
[1719972825901,0.0003,61553.0,61552.0,0.9060698]
[1719972826114,0.0003,61553.0,61552.0,0.8359988]
[1719972826262,0.02162261,61553.0,61552.0,0.8359988]
[1719972826901,0.02162346,61553.0,61552.0,0.8359988]
[1719972827871,0.0003,61553.0,61552.0,0.8359988]
[1719972828182,0.02170162,61553.0,61552.0,0.8359988]
[1719972828761,0.02170162,61553.0,61552.0,0.5218988]
[1719972828961,0.02170162,61553.0,61552.0,0.2701988]
[1719972829225,0.15167062,61553.0,61552.0,0.2102988]
[1719972829584,0.15167062,61553.0,61552.0,0.027]
[1719972829585,1.22184662,61553.0,61552.0,0.027]
[1719972830734,1.22184662,61553.0,61552.0,0.013]
[1719972830945,1.200445,61553.0,61552.0,0.013]
[1719972831160,1.22172649,61553.0,61552.0,0.025]
[1719972831575,1.22172678,61553.0,61552.0,0.013]
[1719972832032,1.22172678,61553.0,61552.0,0.012]
[1719972832239,1.22172678,61553.0,61552.0,0.021]
[1719972832445,1.22172678,61553.0,61552.0,0.012]
[1719972832645,0.67142678,61553.0,61552.0,0.012]
[1719972832815,0.67142678,61553.0,61552.0,0.021]
[1719972833371,1.21772678,61553.0,61552.0,0.021]
[1719972833681,1.26546454,61553.0,61552.0,0.021]
[1719972833879,1.29091058,61553.0,61552.0,0.021]
[1719972834074,1.29135167,61553.0,61552.0,0.021]
[1719972834540,1.29135182,61553.0,61552.0,0.009]
[1719972834713,1.29135182,61553.0,61552.0,0.013]
[1719972834912,1.29135182,61553.0,61552.0,0.004]
[1719972834913,1.55128982,61553.0,61552.0,0.004]
[1719972835136,1.50354622,61553.0,61552.0,0.004]
[1719972835328,1.228277,61550.0,61549.0,0.00883729]
[1719972835536,2.08731751,61550.0,61549.0,0.00883729]
[1719972835690,2.11436202,61550.0,61549.0,0.00883729]
[1719972836261,2.31752061,61550.0,61549.0,0.00883729]
[1719972836604,2.17436202,61550.0,61549.0,0.00883729]
[1719972837191,2.0939881,61550.0,61549.0,0.00883729]
[1719972837395,2.17593492,61550.0,61549.0,0.00883729]
[1719972838053,2.18693492,61550.0,61549.0,0.01083729]
[1719972838211,2.02657186,61550.0,61549.0,0.01083729]
[1719972838411,2.02057186,61550.0,61549.0,0.00883729]
[1719972838617,2.02257186,61550.0,61549.0,0.00983729]
[1719972838820,1.70762086,61550.0,61549.0,0.01083729]
[1719972839022,1.70062086,61550.0,61549.0,0.00983729]
[1719972839251,1.70062086,61550.0,61549.0,0.01083729]
[1719972839447,1.38833439,61550.0,61549.0,0.01083729]
[1719972839824,1.48378124,61550.0,61549.0,0.01083729]
[1719972840043,1.43447565,61550.0,61549.0,0.01083729]
[1719972840447,1.43405096,61550.0,61549.0,0.01083729]
[1719972840659,0.85565096,61550.0,61549.0,0.01083729]
[1719972841055,0.85565096,61550.0,61549.0,0.00983729]
[1719972841056,0.84865096,61550.0,61549.0,0.00983729]
[1719972841231,0.77206366,61550.0,61549.0,0.00883729]
[1719972841585,0.07491406,61550.0,61549.0,0.47403609]
[1719972841785,0.07491406,61550.0,61549.0,0.95261309]
[1719972841786,0.03118666,61550.0,61549.0,0.95261309]
[1719972842005,0.009,61550.0,61549.0,0.95261309]
[1719972842120,0.005,61550.0,61549.0,0.82163609]
[1719972842319,0.005,61550.0,61549.0,1.21156809]
[1719972842583,0.007,61550.0,61549.0,1.21156809]
[1719972842792,0.002,61550.0,61549.0,1.21156809]
[1719972842944,0.00114,61553.0,61552.0,0.0599]
[1719972843155,0.00114,61553.0,61552.0,0.32335462]
[1719972843361,0.00114,61553.0,61552.0,0.69572562]
[1719972843562,0.00114,61553.0,61552.0,1.84140962]
[1719972843763,0.00114,61553.0,61552.0,1.54140962]
[1719972844010,0.00114,61553.0,61552.0,1.84140962]
[1719972844826,0.00114,61553.0,61552.0,1.85440962]
[1719972845407,0.00114,61553.0,61552.0,1.84140962]
[1719972845654,0.00114,61553.0,61552.0,1.85440962]
[1719972845851,0.00114,61553.0,61552.0,2.12635162]
[1719972845852,0.00214,61553.0,61552.0,2.12635162]
[1719972846059,0.001,61553.0,61552.0,2.36640962]
[1719972846399,0.0003,61565.0,61564.0,1.028938]
[1719972846608,0.0003,61565.0,61564.0,1.2122368]
[1719972848842,0.0003,61565.0,61564.0,1.2142368]
[1719972849702,0.0003,61565.0,61564.0,0.9593448]
[1719972849935,0.0003,61565.0,61564.0,0.1902988]
[1719972852296,0.0003,61565.0,61564.0,0.2501988]
[1719972854354,0.0003,61565.0,61564.0,1.1482288]
[1719972856605,0.0003,61565.0,61564.0,1.4482288]
[1719972857714,0.0003,61565.0,61564.0,1.7081208]
[1719972858425,0.0003,61565.0,61564.0,2.0186208]
[1719972859206,0.0003,61565.0,61564.0,2.0116208]
[1719972859405,0.0003,61565.0,61564.0,1.7236208]
[1719972859677,0.0003,61565.0,61564.0,2.0116208]
[1719972859881,0.0003,61565.0,61564.0,2.0256208]
[1719972860021,0.0003,61565.0,61564.0,2.0396208]
[1719972860222,0.0003,61565.0,61564.0,2.0256208]
[1719972860422,0.0003,61565.0,61564.0,2.0116208]
[1719972861767,0.0003,61565.0,61564.0,2.0256208]
[1719972862170,0.0003,61565.0,61564.0,2.0116208]
[1719972862371,0.0003,61565.0,61564.0,2.0256208]
[1719972862608,0.0003,61565.0,61564.0,2.0396208]
[1719972862893,0.0003,61565.0,61564.0,2.0256208]
[1719972863302,0.0003,61565.0,61564.0,2.0396208]
[1719972864953,0.0003,61565.0,61564.0,1.7396208]
[1719972865153,0.0003,61565.0,61564.0,2.0396208]
[1719972868342,0.0003,61565.0,61564.0,1.6797208]
[1719972868556,0.0003,61565.0,61564.0,2.0396208]
[1719972869536,0.0003,61565.0,61564.0,1.4657288]
[1719972869758,0.5689,61575.0,61570.0,0.0599]
[1719972869759,0.55589684,61575.0,61570.0,0.0599]
[1719972869951,0.02017217,61574.0,61571.0,0.1832988]
[1719972870466,0.55589684,61575.0,61571.0,0.1832988]
[1719972870666,0.129928,61573.0,61571.0,0.1832988]
[1719972872418,0.129928,61573.0,61571.0,0.1972988]
[1719972872419,0.01950531,61572.0,61571.0,0.1972988]
[1719972872829,0.01950531,61572.0,61571.0,0.2102988]
[1719972873331,0.3296,61580.0,61576.0,0.0599]
[1719972873509,0.01959404,61579.0,61577.0,0.1832988]
[1719972873711,0.459513,61580.0,61577.0,0.1832988]
[1719972873875,0.01991532,61579.0,61577.0,0.1832988]
[1719972875657,0.01991532,61579.0,61577.0,0.2521988]
[1719972875856,0.02075532,61579.0,61577.0,0.2581988]
[1719972876059,0.01991532,61578.0,61577.0,0.2581988]
[1719972876223,0.01991532,61578.0,61577.0,0.2491988]
[1719972876807,0.01991532,61578.0,61577.0,0.2431988]
[1719972876927,0.01997693,61578.0,61577.0,0.2491988]
[1719972877144,0.01997693,61578.0,61577.0,0.2431988]
[1719972877335,0.01997693,61578.0,61577.0,1.1342908]
[1719972877548,0.00084,61579.0,61578.0,0.749649]
[1719972877751,0.00084,61579.0,61578.0,1.27293662]
[1719972878194,0.00084,61579.0,61578.0,1.53276962]
[1719972879218,0.00084,61579.0,61578.0,2.09956962]
[1719972879450,0.00084,61579.0,61578.0,2.10856962]
[1719972880177,0.00084,61579.0,61578.0,1.54873662]
[1719972880595,0.00084,61579.0,61578.0,0.71310362]
[1719972881006,0.00084,61579.0,61578.0,0.72610362]
[1719972881176,0.00084,61579.0,61578.0,0.73610362]
[1719972882488,0.00084,61579.0,61578.0,1.03610362]
[1719972882883,0.00084,61579.0,61578.0,1.86873662]
[1719972883529,0.00084,61579.0,61578.0,2.12856962]
[1719972884843,0.00084,61579.0,61578.0,2.19360262]
[1719972886098,0.00084,61579.0,61578.0,2.69360262]
[1719972886881,0.00084,61579.0,61578.0,2.68060262]
[1719972887095,0.00084,61579.0,61578.0,2.67060262]
[1719972887269,0.00084,61579.0,61578.0,2.69860262]
[1719972887470,0.00084,61579.0,61578.0,2.68460262]
[1719972888241,0.00084,61579.0,61578.0,2.67060262]
[1719972888685,0.00084,61579.0,61578.0,2.71777679]
[1719972889812,0.00084,61579.0,61578.0,0.74515497]
[1719972890026,0.01565086,61581.0,61580.0,0.0599]
[1719972890250,0.01565086,61581.0,61580.0,0.2201988]
[1719972890465,0.00976086,61581.0,61580.0,0.3501108]
[1719972891124,0.00976086,61581.0,61580.0,0.3731108]
[1719972891330,0.00976086,61581.0,61580.0,0.4011108]
[1719972893258,0.2658,61587.0,61584.0,0.0599]
[1719972893467,0.575,61587.0,61585.0,0.32335462]
[1719972893676,0.2658,61590.0,61587.0,0.0599]
[1719972893880,0.2658,61590.0,61588.0,0.1832988]
[1719972894951,0.3092,61591.0,61588.0,0.1832988]
[1719972895209,0.3092,61591.0,61589.0,0.0599]
[1719972895463,0.3092,61591.0,61590.0,0.1832988]
[1719972897028,0.3092,61591.0,61590.0,0.2431988]
[1719972897226,0.2407,61594.0,61593.0,0.0599]
[1719972897448,0.25868219,61594.0,61593.0,0.2431988]
[1719972897855,0.01798219,61594.0,61593.0,0.2431988]
[1719972898057,0.01798192,61598.0,61594.0,0.0599]
[1719972898265,0.685072,61599.0,61595.0,0.1832988]
[1719972898468,0.01798099,61598.0,61597.0,0.129876]
[1719972898673,0.01798099,61601.0,61597.0,0.3730748]
[1719972898884,0.00084,61602.0,61598.0,0.1832988]
[1719972899081,0.01827779,61601.0,61598.0,0.1832988]
[1719972899288,0.01827779,61601.0,61599.0,0.0599]
[1719972899497,0.00084,61602.0,61601.0,0.0599]
[1719972899856,0.00084,61602.0,61601.0,0.2431988]
[1719972900222,0.00084,61602.0,61601.0,0.1832988]
[1719972900628,0.00084,61602.0,61601.0,0.2431988]
[1719972900836,0.00084,61602.0,61601.0,0.1832988]
[1719972901239,0.831771,61602.0,61601.0,0.1832988]
[1719972901437,0.12988,61595.0,61594.0,0.01976488]
[1719972901664,0.37778,61595.0,61594.0,0.1602988]
[1719972902223,0.637541,61595.0,61594.0,0.1602988]
[1719972902423,0.511941,61600.0,61594.0,0.1602988]
[1719972902631,0.511941,61600.0,61593.0,0.0599]
[1719972902632,0.129874,61598.0,61595.0,0.1602988]
[1719972902835,0.2522,61600.0,61595.0,0.2201988]
[1719972903045,0.01767326,61599.0,61595.0,0.2201988]
[1719972903247,0.2522,61600.0,61596.0,0.023]
[1719972903461,0.01767062,61599.0,61597.0,0.1602988]
[1719972903736,0.38207,61600.0,61597.0,0.1602988]
[1719972904591,0.38207,61600.0,61597.0,0.1642988]
[1719972905048,0.00084,61602.0,61597.0,0.16954553]
[1719972905218,0.01740296,61601.0,61599.0,0.129871]
[1719972905435,0.01740296,61601.0,61600.0,0.1602988]
[1719972905600,0.01740296,61601.0,61600.0,0.1832988]
[1719972906120,0.01740296,61601.0,61600.0,0.2431988]
[1719972906324,0.00084,61602.0,61601.0,0.319636]
[1719972906521,0.00084,61602.0,61601.0,0.97269462]
[1719972907564,0.00084,61602.0,61601.0,0.3730668]
[1719972908137,0.00084,61602.0,61601.0,0.1832988]
[1719972908342,0.650167,61602.0,61601.0,0.1602988]
[1719972908560,0.650167,61602.0,61586.0,0.543]
[1719972908561,0.129885,61593.0,61589.0,0.0599]
[1719972908758,0.259757,61596.0,61590.0,0.1602988]
[1719972908972,0.14673868,61595.0,61590.0,0.1602988]
[1719972909116,0.129882,61595.0,61590.0,0.1602988]
[1719972909316,0.129885,61593.0,61590.0,0.1602988]
[1719972909562,0.259762,61595.0,61590.0,0.1602988]
[1719972909563,0.713467,61591.0,61590.0,0.1602988]
[1719972909764,0.72971625,61591.0,61590.0,0.1602988]
[1719972910148,0.72971625,61591.0,61590.0,0.1742988]
[1719972910417,0.46993825,61591.0,61590.0,0.1742988]
[1719972910589,0.46993825,61591.0,61590.0,0.1602988]
[1719972910821,0.34004925,61591.0,61590.0,0.1832988]